bitfinex-derivatives/quotes_ETHF0:USTF0_20250616
["timestamp","ask_amount","ask_price","bid_price","bid_amount"]
[1750037889467,1.81395959,2529.1,2529.0,3.2078]
[1750037889864,0.79072,2528.9,2528.8,6.903]
[1750037890064,1.81401959,2528.9,2528.8,6.903]
[1750037890274,0.79072,2528.9,2528.8,6.903]
[1750037891380,0.79072,2528.9,2528.8,7.69376]
[1750037891574,0.00589179,2529.1,2529.0,0.79069]
[1750037891879,0.00589179,2529.1,2529.0,3.99849]
[1750037892075,1.02877,2529.1,2528.7,6.903]
[1750037892274,1.02287821,2529.0,2528.7,7.69377]
[1750037892574,0.79076,2528.8,2528.7,7.69377]
[1750037892880,0.79076,2528.8,2528.7,7.69379]
[1750037893177,0.79074,2528.9,2528.7,7.69379]
[1750037893376,0.79076,2528.8,2528.7,7.69379]
[1750037894674,0.79075,2528.9,2528.8,0.79075]
[1750037895075,0.79079,2528.7,2528.6,0.00593214]
[1750037895580,5.18458,2529.0,2528.9,0.79072]
[1750037895581,3.2078,2529.0,2528.9,0.79072]
[1750037895768,0.00589179,2529.1,2529.0,0.79069]
[1750037896078,0.00589179,2529.1,2529.0,9.48039]
[1750037896773,3.1625,2529.6,2529.5,0.79054]
[1750037896977,3.1625,2529.6,2529.5,12.19438367]
[1750037897177,0.1066,2529.7,2529.6,0.79051]
[1750037897374,0.7904,2530.0,2529.6,3.5774]
[1750037897577,3.18166,2530.1,2529.8,3.2078]
[1750037897780,2.3913,2530.1,2529.9,0.79041]
[1750037898080,2.3913,2530.1,2529.8,3.2078]
[1750037898283,3.18165,2530.1,2530.0,0.79038]
[1750037898782,3.18165,2530.1,2529.9,7.69439]
[1750037898981,0.79038,2530.0,2529.9,8.7216]
[1750037900375,2.3913,2530.1,2529.9,8.7216]
[1750037900579,3.18166,2530.1,2529.9,9.512]
[1750037901276,0.79038,2530.0,2529.9,6.904]
[1750037902080,2.3913,2530.1,2530.0,0.79038]
[1750037902380,2.3913,2530.1,2530.0,2.74418]
[1750037904177,2.3913,2530.1,2530.0,7.74418]
[1750037904772,0.7187,2530.2,2530.1,0.79035]
[1750037904979,3.99789,2531.0,2530.8,0.79012]
[1750037905279,0.79012,2530.9,2530.7,6.902]
[1750037905478,0.79012,2530.9,2530.7,7.69215]
[1750037905679,0.79013,2530.8,2530.7,8.8707]
[1750037906084,3.2078,2531.0,2530.9,0.7901]
[1750037906282,1.8581,2531.5,2530.9,7.70764367]
[1750037906474,1.8581,2531.5,2531.0,1.9687]
[1750037906673,1.8581,2531.5,2531.1,6.902]
[1750037906877,3.2078,2532.2,2531.4,3.2078]
[1750037907075,3.2078,2532.2,2531.8,4.49984367]
[1750037907276,1.02623,2532.1,2531.9,2.75847]
[1750037907476,0.78976,2532.0,2531.9,8.8707]
[1750037907874,0.78976,2532.0,2531.9,6.901]
[1750037908490,0.2365,2532.1,2531.9,6.901]
[1750037908679,0.2365,2532.1,2532.0,3.2078]
[1750037908879,0.2365,2532.1,2532.0,3.99756]
[1750037909075,3.2078,2532.5,2532.0,14.52604367]
[1750037909281,1.8156,2533.9,2532.4,7.70764367]
[1750037909484,1.01384273,2533.8,2533.1,7.70764367]
[1750037909695,0.78913,2534.1,2533.7,3.2078]
[1750037909883,0.78916,2533.9,2533.8,1.01489]
[1750037910188,3.2078,2534.0,2533.4,11.38884367]
[1750037910382,3.2078,2534.0,2533.5,3.2078]
[1750037910879,3.99695,2534.0,2533.6,0.78924]
[1750037911190,0.78917,2533.9,2533.5,29.22907]
[1750037911487,0.78917,2533.9,2533.5,29.22908]
[1750037911488,0.7892,2533.9,2533.5,29.22908]
[1750037911684,5.0234,2534.3,2533.5,28.4398]
[1750037911880,5.0234,2534.3,2533.4,11.38884367]
[1750037911881,3.2078,2533.8,2533.4,6.889]
[1750037912191,3.2078,2534.1,2533.4,6.889]
[1750037912490,3.2078,2533.7,2533.4,6.889]
[1750037912795,0.78926,2533.6,2533.5,6.887]
[1750037913282,0.78935,2533.3,2533.2,6.885]
[1750037913490,3.2078,2533.8,2533.2,6.885]
[1750037913694,3.2078,2533.5,2533.0,3.2078]
[1750037913883,3.2078,2533.5,2533.1,47.685]
[1750037914188,0.78939,2533.2,2533.1,40.8]
[1750037914384,0.78939,2533.2,2533.1,6.885]
[1750037914691,0.78937,2533.3,2533.1,6.885]
[1750037914886,0.78939,2533.2,2533.1,6.885]
[1750037915188,0.78942,2533.1,2533.0,44.0078]
[1750037915392,0.78945,2533.0,2532.9,6.89093214]
[1750037915693,0.7896,2532.5,2532.4,3.2078]
[1750037916093,0.7896,2532.5,2532.4,10.0928]
[1750037916391,0.00589078,2533.2,2532.5,0.78959]
[1750037916392,0.78951,2532.8,2532.5,0.78959]
[1750037916686,0.78951,2532.8,2532.7,3.2078]
[1750037916989,0.00589078,2533.2,2532.6,1.9217]
[1750037917390,0.00589078,2533.2,2532.7,3.2078]
[1750037917590,0.78951,2532.8,2532.7,10.0918]
[1750037917891,0.78951,2532.8,2532.7,3.2078]
[1750037918291,0.78951,2532.8,2532.7,10.0918]
[1750037918493,0.78951,2532.8,2532.7,6.884]
[1750037918988,0.79529078,2533.2,2532.7,10.0918]
[1750037919185,0.00589078,2533.2,2532.7,10.0918]
[1750037919391,0.00589078,2533.2,2533.0,0.78944]
[1750037919594,0.78943,2533.1,2532.8,27.90709]
[1750037919788,0.78946,2533.0,2532.8,1.8966]
[1750037919988,3.2078,2533.1,2532.9,6.884]
[1750037920192,0.00589078,2533.2,2532.9,6.884]
[1750037920491,0.78945,2533.0,2532.9,6.884]
[1750037920884,0.82815617,2533.0,2532.9,6.884]
[1750037921991,0.03870617,2533.0,2532.9,7.67348]
[1750037922485,0.03870617,2533.0,2532.9,9.63858]
[1750037922991,0.03273368,2533.0,2532.9,14.63858]
[1750037923586,0.00589078,2533.2,2533.1,0.78942]
[1750037923787,0.00589078,2533.2,2533.1,29.21422]
[1750037924092,0.00589078,2533.2,2533.1,67.8898]
[1750037924296,0.00589078,2533.2,2533.1,75.56222]
[1750037924699,0.00589078,2533.2,2533.1,27.0898]
[1750037924900,0.00589078,2533.2,2533.1,30.765]
[1750037925397,0.00589078,2533.2,2533.1,31.55442]
[1750037926294,0.00589078,2533.2,2533.1,24.67142]
[1750037926494,0.00589078,2533.2,2533.1,33.43412]
[1750037926693,0.00589078,2533.2,2533.1,26.55212]
[1750037926889,0.00589078,2533.2,2533.1,58.64812]
[1750037928198,7.8e-07,2533.2,2533.1,68.69559417]
[1750037928587,7.8e-07,2533.2,2533.1,72.39959417]
[1750037928785,7.8e-07,2533.2,2533.1,67.35212]
[1750037928992,7.8e-07,2533.2,2533.1,65.47142]
[1750037929197,7.8e-07,2533.2,2533.1,97.56542]
[1750037929592,7.8e-07,2533.2,2533.1,99.48502]
[1750037930091,5.84965,2534.3,2533.7,1.97304]
[1750037930295,5.84965,2534.3,2533.8,6.882]
[1750037930601,1.8577,2534.2,2534.1,0.78911]
[1750037931098,1.7747,2534.5,2534.1,3.2078]
[1750037931403,1.8577,2534.2,2534.1,0.78911]
[1750037931898,1.8577,2534.2,2534.0,6.881]
[1750037932201,3.99691,2534.1,2534.0,6.881]
[1750037932599,0.78911,2534.1,2534.0,6.881]
[1750037933091,1.8577,2534.2,2534.1,0.78911]
[1750037933401,2.64678,2534.2,2534.1,0.78911]
[1750037933598,0.78911,2534.1,2534.0,7.67012]
[1750037933798,1.8577,2534.2,2534.0,7.67012]
[1750037934502,1.8577,2534.2,2534.0,6.881]
[1750037934696,0.78911,2534.1,2534.0,6.881]
[1750037935092,1.8577,2534.2,2534.0,7.67014]
[1750037935093,2.6468,2534.2,2534.0,7.67014]
[1750037935295,0.78906,2534.3,2534.1,0.78911]
[1750037935495,0.78908,2534.2,2534.1,0.78911]
[1750037935697,1.01648293,2534.3,2534.2,0.78908]
[1750037935904,2.87538293,2534.3,2534.2,0.78908]
[1750037936402,2.87539935,2534.3,2534.1,0.78909]
[1750037936598,1.01399118,2534.2,2533.9,0.00591973]
[1750037936800,0.78914,2534.0,2533.9,0.00591973]
[1750037937007,5.01093118,2534.0,2533.9,0.00591973]
[1750037937303,6.90773118,2534.0,2533.9,0.00591973]
[1750037937505,11.11859118,2534.0,2533.3,3.2078]
[1750037937702,1.01399118,2533.9,2533.4,6.88]
[1750037937898,0.78928,2533.6,2533.5,0.78928]
[1750037938098,1.80397651,2533.6,2533.5,0.78929]
[1750037938307,0.78929,2533.5,2533.4,6.88]
[1750037938511,0.78929,2533.5,2533.4,7.6693]
[1750037938512,2.91149651,2533.5,2533.4,7.6693]
[1750037938904,3.70078651,2533.5,2533.4,6.88]
[1750037939410,2.91149651,2533.5,2533.4,7.66932]
[1750037940207,1.01469651,2533.5,2533.4,7.66932]
[1750037941009,1.01469651,2533.5,2533.3,10.0858]
[1750037941201,0.78936,2533.3,2533.2,6.88391973]
[1750037941511,1.01469651,2533.3,2533.2,7.67330973]
[1750037942312,7.62715973,2533.7,2533.6,0.78926]
[1750037942513,0.7893,2533.5,2533.2,6.88391973]
[1750037942807,1.01543042,2533.4,2533.3,0.78936]
[1750037943213,1.80475042,2533.4,2533.3,0.78936]
[1750037943399,1.01543042,2533.4,2533.3,0.78936]
[1750037944208,0.00591973,2533.7,2533.6,0.78926]
[1750037944608,0.00591973,2533.7,2533.6,10.87506]
[1750037944801,0.00591973,2533.7,2533.6,15.36038537]
[1750037945002,0.00591973,2533.7,2533.6,17.17298537]
[1750037945511,0.00591973,2533.7,2533.6,10.87506]
[1750037946506,0.00591973,2533.7,2533.5,0.78929]
[1750037946712,0.00591973,2533.7,2533.3,10.0858]
[1750037946904,0.78928,2533.6,2533.5,0.78929]
[1750037947399,0.00591973,2533.7,2533.3,10.0858]
[1750037947607,0.78931,2533.5,2533.4,0.78931]
[1750037947813,1.96311973,2533.7,2533.3,10.0858]
[1750037948001,0.78932,2533.5,2533.4,0.78931]
[1750037948207,0.78932,2533.4,2533.3,7.66736]
[1750037948404,5.17091973,2533.7,2533.4,0.78931]
[1750037948610,0.00591973,2533.7,2533.6,3.99706]
[1750037948809,0.79514973,2533.7,2533.6,3.99706]
[1750037949115,0.00591973,2533.7,2533.6,3.99706]
[1750037949412,0.79514973,2533.7,2533.6,3.99706]
[1750037949612,0.79514973,2533.7,2533.6,3.2078]
[1750037950008,2.61984973,2533.7,2533.6,3.2078]
[1750037950515,0.00591973,2533.7,2533.6,3.99706]
[1750037951107,0.79514973,2533.7,2533.6,3.99706]
[1750037951614,0.79514973,2533.7,2533.6,3.2078]
[1750037951815,0.00591973,2533.7,2533.6,3.99706]
[1750037952220,0.00591973,2533.7,2533.6,5.96786]
[1750037953516,0.00591973,2533.7,2533.6,12.84586]
[1750037953913,15.233673,2533.7,2533.2,0.00591973]
[1750037954112,3.2078,2533.3,2532.1,3.2078]
[1750037954412,3.99732,2532.8,2532.2,6.878]
[1750037954612,0.78956,2532.7,2532.5,0.78957]
[1750037955017,3.2078,2532.8,2532.3,0.00591973]
[1750037955221,0.78956,2532.7,2532.5,0.78959]
[1750037955517,3.2078,2532.8,2532.4,7.66762]
[1750037955818,0.78957,2532.6,2532.5,0.7896]
[1750037956011,3.2078,2532.8,2532.7,0.78954]
[1750037957116,3.2078,2532.8,2532.7,2.68374]
[1750037957621,3.2078,2532.8,2532.7,4.49054]
[1750037958410,3.2078,2533.3,2532.7,3.701]
[1750037958614,3.2078,2533.3,2533.2,0.78939]
[1750037958809,3.2078,2533.3,2533.2,7.66839]
[1750037959409,3.2078,2533.3,2533.2,6.879]
[1750037959718,3.2078,2533.3,2533.2,7.66839]
[1750037960414,0.00591973,2533.7,2533.6,0.78926]
[1750037960616,0.00591973,2533.7,2533.6,7.66826]
[1750037961006,0.00591973,2533.7,2533.6,48.46826]
[1750037961207,0.00591973,2533.7,2533.3,6.957]
[1750037961416,3.2078,2533.4,2533.2,6.878]
[1750037961616,0.78931,2533.5,2533.3,0.78936]
[1750037961818,0.78929,2533.5,2533.2,6.878]
[1750037962017,3.2078,2533.4,2533.0,40.8]
[1750037962210,3.2078,2533.4,2533.3,0.78936]
[1750037962516,0.00591973,2533.7,2533.5,0.78928]
[1750037962517,3.21371973,2533.7,2533.5,0.78928]
[1750037962719,0.78926,2533.6,2533.5,0.78928]
[1750037962914,3.21371973,2533.7,2533.6,0.78926]
[1750037963317,0.00591973,2533.7,2533.6,0.78926]
[1750037963514,0.00591973,2533.7,2533.6,2.62906]
[1750037964014,3.21371973,2533.7,2533.6,0.78926]
[1750037964216,0.00591973,2533.7,2533.6,0.78926]
[1750037964621,0.00591973,2533.7,2533.6,4.44086]
[1750037965518,0.00591973,2533.7,2533.6,6.22296]
[1750037967113,0.00591973,2533.7,2533.6,38.47996]
[1750037967609,5.046,2534.3,2534.1,0.78908]
[1750037968024,5.83506,2534.3,2534.1,0.78908]
[1750037968318,5.83506,2534.3,2534.2,0.78908]
[1750037969126,0.78908,2534.2,2534.1,0.78908]
[1750037969325,5.83507,2534.3,2534.2,0.78908]
[1750037969517,5.83507,2534.3,2534.0,6.88291973]
[1750037969518,0.78911,2534.1,2534.0,6.88291973]
[1750037969717,0.78911,2534.1,2534.0,7.67205973]
[1750037969926,0.78911,2534.1,2534.0,6.88291973]
[1750037970119,0.78911,2534.1,2534.0,0.00591973]
[1750037970335,0.78911,2534.1,2532.8,34.0388]
[1750037970336,9.4850139,2534.1,2532.8,34.0388]
[1750037970536,0.78937,2533.3,2533.2,0.78939]
[1750037970738,0.78937,2533.3,2533.1,0.7894]
[1750037971046,3.2078,2533.4,2532.8,34.0388]
[1750037971241,0.78948,2532.9,2532.8,30.83691973]
[1750037971538,0.78948,2532.9,2532.8,6.96091973]
[1750037971740,2.60048,2532.9,2532.8,0.00591973]
[1750037973244,0.78948,2532.9,2532.8,0.00591973]
[1750037974336,3.2078,2533.0,2532.8,0.79541973]
[1750037974534,0.78948,2532.9,2532.8,0.00591973]
[1750037975343,3.99727,2533.0,2532.8,0.79541973]
[1750037975544,0.78948,2532.9,2532.8,0.00591973]
[1750037975738,0.78948,2532.9,2532.8,0.79542973]
[1750037975947,3.2078,2533.0,2532.8,0.79541973]
[1750037976148,0.78948,2532.9,2532.8,0.00591973]
[1750037976350,0.78948,2532.9,2532.8,0.79542973]
[1750037976546,3.2078,2533.0,2532.8,0.00591973]
[1750037976744,3.2078,2533.0,2532.9,0.78948]
[1750037976948,3.2078,2533.0,2532.9,7.74548]
[1750037977146,3.2078,2533.0,2532.9,11.57298]
[1750037979556,0.00591973,2533.1,2533.0,0.78945]
[1750037980351,0.00591973,2533.1,2532.8,0.00591973]
[1750037980555,0.78946,2533.0,2532.9,0.78948]
[1750037981054,3.83451973,2533.1,2532.8,6.96291973]
[1750037981253,3.83451973,2533.1,2532.8,0.00591973]
[1750037981451,1.87171973,2533.1,2533.0,0.78945]
[1750037982055,2.66113973,2533.1,2532.9,0.78946]
[1750037982248,1.87171973,2533.1,2532.9,0.78946]
[1750037982443,1.87171973,2533.1,2532.8,0.00591973]
[1750037982643,3.99728,2532.9,2532.8,0.00591973]
[1750037983445,3.99728,2532.9,2532.8,0.79542973]
[1750037983651,3.99728,2532.9,2532.8,0.00591973]
[1750037984951,3.2078,2532.9,2532.8,0.79542973]
[1750037985158,0.00591973,2533.1,2533.0,0.78945]
[1750037986055,0.00591973,2533.1,2532.9,0.78946]
[1750037986261,0.78946,2533.0,2532.9,0.78946]
[1750037986754,0.78948,2532.9,2532.8,0.00591973]
[1750037986949,7.73848,2532.9,2532.8,0.00591973]
[1750037987358,5.1321,2532.9,2532.8,0.79542973]
[1750037987557,5.92158,2532.9,2532.8,0.79542973]
[1750037987760,5.92158,2532.9,2532.8,0.00591973]
[1750037988863,5.92158,2532.9,2532.8,0.79542973]
[1750037989089,5.1321,2532.9,2532.8,0.79542973]
[1750037989257,3.2078,2532.9,2532.8,0.79542973]
[1750037989656,3.2078,2532.9,2532.8,0.00591973]
[1750037989960,3.2078,2532.9,2532.8,0.79542973]
[1750037991261,0.00591973,2533.1,2532.9,0.78945]
[1750037991464,0.00591973,2533.1,2533.0,0.78945]
[1750037992560,0.00591973,2533.1,2533.0,7.74645]
[1750037992858,0.78934,2533.4,2533.3,0.78934]
[1750037993968,0.78931,2533.5,2533.3,0.78934]
[1750037994172,4.00299973,2533.6,2533.4,0.78932]
[1750037994458,3.21371973,2533.6,2533.5,0.78929]
[1750037994658,4.00297973,2533.6,2533.4,0.78931]
[1750037994858,4.00297973,2533.6,2533.5,0.78929]
[1750037995358,0.00591973,2533.6,2533.5,12.23375696]
[1750037996867,0.00591973,2533.6,2533.5,48.54629]
[1750037997663,0.00591973,2533.6,2533.5,58.03375696]
[1750037997864,0.00591973,2533.6,2533.5,47.756]
[1750037998065,0.00591973,2533.6,2533.4,0.78931]
[1750037998363,0.78932,2533.5,2533.3,0.78936]
[1750037998565,0.00591973,2533.6,2533.2,6.956]
[1750037998566,3.2078,2533.4,2533.2,6.956]
[1750037998769,3.99714,2533.4,2533.2,7.74538]
[1750037999068,3.2078,2533.4,2533.2,6.956]
[1750037999273,3.99714,2533.4,2533.2,7.74539]
[1750037999471,3.99714,2533.4,2533.2,6.956]
[1750037999472,3.2078,2533.4,2533.2,6.956]
[1750037999664,3.2078,2533.4,2533.3,0.78936]
[1750038000369,3.2078,2533.4,2533.3,5.27682696]
[1750038000571,3.2078,2533.4,2533.3,7.09152696]
[1750038000768,3.2078,2533.4,2533.3,7.67036]
[1750038001066,3.2078,2533.4,2533.1,0.78941]
[1750038001267,0.78936,2533.3,2533.2,6.881]
[1750038001471,3.2078,2533.4,2533.2,7.67038]
[1750038001673,0.78936,2533.3,2533.2,6.881]
[1750038001881,3.2078,2533.4,2533.3,0.78936]
[1750038002066,0.78932,2533.4,2533.3,0.78936]
[1750038002266,0.00591973,2533.6,2533.2,6.881]
[1750038002466,0.78935,2533.4,2533.2,7.67037]
[1750038002665,0.78935,2533.4,2533.3,0.78936]
[1750038002972,0.78936,2533.3,2533.2,7.67037]
[1750038003270,0.78936,2533.3,2533.2,6.881]
[1750038003480,0.78941,2533.2,2533.0,23.877]
[1750038003675,3.2078,2533.4,2533.3,0.78936]
[1750038003868,0.78937,2533.3,2533.1,48.4704]
[1750038004068,3.2078,2533.4,2533.1,47.681]
[1750038004268,0.78937,2533.3,2533.1,48.4704]
[1750038004771,3.99714,2533.4,2533.2,7.67036]
[1750038004966,3.99714,2533.4,2533.3,0.78936]
[1750038005167,3.2078,2533.4,2533.3,0.78936]
[1750038005366,3.99712,2533.4,2533.3,0.78936]
[1750038005671,0.78936,2533.3,2533.2,6.881]
[1750038005978,3.99714,2533.4,2533.3,0.78936]
[1750038006366,3.2078,2533.4,2533.3,0.78936]
[1750038006773,0.00591973,2533.6,2533.5,0.78929]
[1750038007075,0.00591973,2533.6,2533.5,5.27675696]
[1750038007575,0.00591973,2533.6,2533.5,9.05995696]
[1750038008173,0.00591973,2533.6,2533.5,32.88129]
[1750038008380,0.00591973,2533.6,2533.2,7.67037]
[1750038008584,0.00591973,2533.6,2533.2,6.881]
[1750038008585,0.78936,2533.3,2533.2,6.881]
[1750038009080,0.78936,2533.3,2533.2,7.67039]
[1750038009576,0.78942,2533.2,2533.0,24.66643]
[1750038009876,0.78945,2533.0,2532.9,6.881]
[1750038010377,0.78948,2532.9,2532.8,0.00591973]
[1750038010579,2.72498,2532.9,2532.8,0.00591973]
[1750038010881,4.64948,2532.9,2532.8,0.00591973]
[1750038011280,4.64948,2532.9,2532.8,0.79542973]
[1750038011281,2.72498,2532.9,2532.8,0.79542973]
[1750038011480,2.72498,2532.9,2532.8,0.00591973]
[1750038012374,3.2078,2533.0,2532.9,0.78948]
[1750038012573,1.8871,2533.1,2532.9,0.78948]
[1750038012783,0.78948,2532.9,2532.8,6.88691973]
[1750038013685,3.2078,2533.0,2532.8,7.67641973]
[1750038013984,0.78948,2532.9,2532.8,6.88691973]
[1750038014371,4.63788,2532.9,2532.8,6.88691973]
[1750038016384,2.72338,2532.9,2532.8,6.88691973]
[1750038018388,4.69438,2532.9,2532.8,6.88691973]
[1750038018880,4.69438,2532.9,2532.8,0.00591973]
[1750038020579,2.72338,2532.9,2532.8,0.00591973]
[1750038022181,4.54778,2532.9,2532.8,0.00591973]
[1750038022986,0.78964,2532.5,2532.4,0.78962]
[1750038023284,0.78964,2532.5,2532.0,3.99754]
[1750038023285,1.97402,2532.5,2532.0,3.99754]
[1750038023479,0.78978,2532.0,2531.9,7.67177]
[1750038023678,0.78978,2532.0,2531.9,6.882]
[1750038023880,0.78974,2532.1,2532.0,0.78975]
[1750038024082,0.78974,2532.1,2531.9,6.882]
[1750038024083,0.78976,2532.0,2531.9,7.67178]
[1750038024687,0.78976,2532.0,2531.9,6.882]
[1750038025086,0.78975,2532.1,2532.0,0.78975]
[1750038025282,0.78976,2532.0,2531.9,7.67178]
[1750038025781,0.78976,2532.0,2531.9,7.67278]
[1750038026181,0.78976,2532.0,2531.9,6.883]
[1750038026693,3.99756,2532.0,2531.9,6.883]
[1750038027285,3.2078,2532.0,2531.9,6.883]
[1750038027484,3.99756,2532.0,2531.9,6.883]
[1750038028181,3.99756,2532.0,2531.9,7.67279]
[1750038028788,3.99756,2532.0,2531.9,6.883]
[1750038028987,3.99756,2532.0,2531.7,5.53571973]
[1750038028988,0.7898,2531.9,2531.8,6.883]
[1750038029291,3.99758,2532.0,2531.8,6.883]
[1750038029478,3.99758,2532.0,2531.9,0.78979]
[1750038029880,3.2078,2532.0,2531.8,6.883]
[1750038030079,3.99757,2532.0,2531.9,0.78979]
[1750038030286,3.2078,2532.0,2531.9,0.78979]
[1750038030487,3.99756,2532.0,2531.9,0.78979]
[1750038030885,0.7898,2531.9,2531.8,7.6708]
[1750038031285,3.99758,2532.0,2531.9,0.78979]
[1750038031889,0.78979,2531.9,2531.8,7.67081]
[1750038032095,3.99758,2532.0,2531.9,0.78979]
[1750038032594,0.78979,2531.9,2531.8,7.6708]
[1750038033096,0.78979,2531.9,2531.8,6.881]
[1750038033290,8.2078,2531.9,2531.1,6.881]
[1750038033491,3.2078,2531.5,2531.1,4.37632]
[1750038033694,0.78997,2531.4,2531.2,0.78999]
[1750038033886,3.2078,2531.5,2531.1,4.37632]
[1750038034197,0.79001,2531.2,2531.1,3.5863]
[1750038034498,0.79001,2531.2,2531.1,10.4673]
[1750038034991,0.79001,2531.2,2531.1,6.881]
[1750038035197,0.79001,2531.2,2530.9,10.09471973]
[1750038035393,2.0109,2531.4,2530.9,10.09471973]
[1750038035697,2.0109,2531.4,2531.0,7.67106]
[1750038035698,0.79006,2531.1,2531.0,7.67106]
[1750038035901,0.79006,2531.1,2531.0,6.881]
[1750038037294,0.79004,2531.2,2531.0,6.881]
[1750038037503,0.78997,2531.4,2531.2,0.79001]
[1750038037801,3.2078,2531.5,2531.2,0.79]
[1750038038101,0.78995,2531.4,2531.3,1.9676]
[1750038039295,3.2078,2531.5,2531.4,0.78995]
[1750038039596,0.78974,2532.1,2531.9,0.78979]
[1750038039802,0.78974,2532.1,2532.0,1.8819]
[1750038040397,0.78974,2532.1,2532.0,2.67166]
[1750038040598,0.78974,2532.1,2532.0,1.8819]
[1750038040904,0.78974,2532.1,2532.0,2.67166]
[1750038041202,0.79563973,2532.2,2532.0,1.8819]
[1750038041402,0.79563973,2532.2,2532.0,2.67165]
[1750038041604,0.00591973,2532.2,2532.1,0.78973]
[1750038041803,0.00591973,2532.2,2532.1,7.05339696]
[1750038046309,0.79561973,2532.2,2532.1,1.7762]
[1750038046513,0.00591973,2532.2,2532.1,9.44793]
[1750038046713,0.79561973,2532.2,2532.1,9.44793]
[1750038046907,0.00591973,2532.2,2532.1,9.44793]
[1750038050417,0.00591973,2532.2,2532.1,9.73792414]
[1750038051617,0.00591973,2532.2,2532.1,13.93539696]
[1750038052119,0.00591973,2532.2,2532.1,54.73539696]
[1750038052519,0.00591973,2532.2,2532.1,47.85339696]
[1750038052708,0.79561973,2532.2,2532.1,43.36593]
[1750038053015,0.00591973,2532.2,2532.1,50.24693]
[1750038053216,0.79561973,2532.2,2532.1,50.24693]
[1750038053416,0.00591973,2532.2,2532.1,9.44693]
[1750038053811,0.79561973,2532.2,2532.1,7.67073]
[1750038054012,0.79561973,2532.2,2532.1,0.78973]
[1750038054213,0.79563973,2532.2,2532.1,0.78973]
[1750038054416,0.00591973,2532.2,2532.1,0.78973]
[1750038055518,0.79561973,2532.2,2532.1,0.78973]
[1750038055815,0.00591973,2532.2,2532.1,0.78973]
[1750038056716,0.00591973,2532.2,2532.1,2.15933]
[1750038057916,3.2078,2533.0,2532.5,1.97395]
[1750038058112,3.2078,2533.0,2532.9,5.27694696]
[1750038058622,3.99725,2533.0,2532.9,40.8]
[1750038058922,3.99725,2533.0,2532.6,35.3856]
[1750038058923,0.78952,2532.8,2532.7,0.00591973]
[1750038059323,3.2078,2533.0,2532.7,0.79544973]
[1750038059522,0.78948,2532.9,2532.7,0.79544973]
[1750038059722,3.2078,2533.0,2532.7,0.79544973]
[1750038060016,0.78952,2532.8,2532.7,0.00591973]
[1750038060222,0.78952,2532.8,2532.7,0.79546973]
[1750038060618,0.78952,2532.8,2532.7,0.00591973]
[1750038060819,3.2078,2533.0,2532.8,0.78951]
[1750038060820,2.05919,2532.9,2532.8,0.78951]
[1750038061017,0.78951,2532.8,2532.7,0.79545973]
[1750038061216,2.0592,2532.9,2532.7,0.79545973]
[1750038061423,3.2078,2533.0,2532.9,0.78948]
[1750038061816,3.2078,2533.0,2532.8,0.7895]
[1750038062129,0.78951,2532.8,2532.7,7.66743973]
[1750038062328,0.78951,2532.8,2532.7,6.87791973]
[1750038062625,0.7895,2532.9,2532.7,0.00591973]
[1750038062816,3.2078,2533.0,2532.9,0.78948]
[1750038063018,3.2078,2533.0,2532.7,0.00591973]
[1750038063019,0.79531973,2533.2,2532.8,4.48746696]
[1750038063221,0.00591973,2533.2,2533.1,5.27688696]
[1750038063422,3.2078,2533.6,2533.5,0.7893]
[1750038063626,3.2078,2533.9,2533.8,0.7892]
[1750038064322,2.78016,2534.0,2533.8,0.7892]
[1750038064827,0.78917,2533.9,2533.7,0.78921]
[1750038065214,0.78917,2533.9,2533.8,0.7892]
[1750038065418,0.78917,2533.9,2533.7,0.78921]
[1750038066426,1.991,2534.0,2533.5,12.69996696]
[1750038066622,2.78015,2534.0,2533.8,0.78919]
[1750038066820,0.78917,2533.9,2533.7,0.78921]
[1750038067221,2.78015,2534.0,2533.5,12.69996696]
[1750038067417,2.78015,2534.0,2533.8,0.78919]
[1750038067920,0.7892,2533.8,2533.6,0.78925]
[1750038068125,0.78919,2533.9,2533.7,0.78923]
[1750038068324,0.78927,2533.6,2533.5,1.3405]
[1750038068626,0.78939,2533.2,2533.1,6.871]
[1750038068924,3.2078,2533.4,2533.1,6.871]
[1750038069122,0.78936,2533.3,2533.1,7.66041]
[1750038069317,3.2078,2533.4,2533.1,6.871]
[1750038069526,3.2078,2533.4,2533.1,11.35846696]
[1750038070229,0.78925,2533.7,2533.5,0.78929]
[1750038070429,0.78925,2533.7,2533.5,7.65929]
[1750038070931,0.78927,2533.6,2533.5,6.87]
[1750038071327,3.2078,2533.9,2533.8,0.7892]
[1750038071538,0.78917,2533.9,2533.8,4.48746696]
[1750038071831,0.00591973,2534.1,2533.9,0.78915]
[1750038072028,0.00591973,2534.1,2534.0,7.65914]
[1750038072334,0.00591973,2534.1,2534.0,9.03224]
[1750038075439,0.00591973,2534.1,2533.7,1.0572]
[1750038075741,0.78917,2533.9,2533.8,6.869]
[1750038076530,0.78917,2533.9,2533.8,7.6582]
[1750038076732,0.00591973,2534.1,2533.8,6.869]
[1750038076934,0.78917,2533.9,2533.8,6.869]
[1750038078041,0.78923,2533.7,2533.6,23.874]
[1750038078242,0.78923,2533.7,2533.6,30.743]
[1750038078443,0.78923,2533.7,2533.6,6.869]
[1750038078634,0.78941,2533.2,2533.1,0.78941]
[1750038078936,0.78941,2533.2,2533.1,6.869]
[1750038081137,0.78942,2533.1,2533.0,3.2078]
[1750038081341,0.78942,2533.1,2533.0,10.86625]
[1750038082338,3.2078,2533.6,2533.0,15.0768]
[1750038082545,3.2078,2533.9,2533.4,4.48746696]
[1750038082740,0.78914,2534.0,2533.8,0.7892]